bitfinex-derivatives/quotes_ETHF0:USTF0_20260305
["timestamp","ask_amount","ask_price","bid_price","bid_amount"]
[1772745033684,0.54287269,2093.4,2092.7,0.56236969]
[1772745033989,0.00566898,2093.4,2092.9,0.55653725]
[1772745034281,0.54287269,2093.4,2092.9,0.55653725]
[1772745035073,0.00566898,2093.4,2092.9,0.55653725]
[1772745035478,0.54287269,2093.4,2092.9,0.55653725]
[1772745036779,0.00566898,2093.4,2092.9,0.55653725]
[1772745046288,0.53720371,2093.7,2092.9,0.55653725]
[1772745046583,0.53720371,2093.7,2093.2,0.55653725]
[1772745047391,0.54156343,2093.7,2093.2,0.55653725]
[1772745053593,0.53720371,2093.6,2093.1,0.55653725]
[1772745055695,0.53720371,2093.6,2093.2,0.55653725]
[1772745056395,0.00435972,2093.7,2093.2,0.55653725]
[1772745056396,0.54156343,2093.7,2093.2,0.55653725]
[1772745059203,0.53720371,2093.6,2093.0,0.55653725]
[1772745060401,0.59262844,2093.3,2092.8,0.55421258]
[1772745060903,0.59262844,2093.1,2092.7,0.00583244]
[1772745061094,0.59262844,2093.1,2092.4,0.55421258]
[1772745061802,0.59262844,2093.2,2092.6,0.55421258]
[1772745061996,0.59262844,2093.2,2092.6,0.56038797]
[1772745062598,0.59262844,2093.4,2092.6,0.56038797]
[1772745065400,6.84862844,2093.6,2092.8,0.55421258]
[1772745065598,0.59262844,2093.5,2092.8,0.55421258]
[1772745066799,0.83575816,2093.7,2093.1,0.55421258]
[1772745067103,0.59262844,2093.6,2093.1,0.55421258]
[1772745070707,0.59262844,2093.6,2093.0,0.55421258]
[1772745072507,0.24312972,2093.7,2093.0,0.55421258]
[1772745072808,0.59262844,2093.6,2093.0,0.55421258]
[1772745073203,0.23873,2094.1,2093.1,0.55421258]
[1772745073410,0.59262844,2094.0,2093.1,0.55421258]
[1772745074208,0.59875694,2094.0,2093.1,0.55421258]
[1772745076912,0.59875694,2094.0,2093.2,40.8]
[1772745077104,0.59875694,2094.0,2093.3,0.55421258]
[1772745083823,0.59262844,2093.8,2093.2,0.55421258]
[1772745084523,0.59262844,2093.6,2093.0,0.55421258]
[1772745084718,0.59262844,2093.6,2092.7,0.55421258]
[1772745084719,0.59262844,2093.4,2092.7,0.55421258]
[1772745085024,6.256,2093.6,2092.6,0.00617539]
[1772745085025,0.59262844,2093.2,2092.6,0.00617539]
[1772745087117,0.59262844,2093.2,2092.6,0.56038797]
[1772745088818,0.56139368,2093.5,2092.6,0.56038797]
[1772745089221,0.56139368,2093.3,2092.6,0.00617539]
[1772745090225,0.53742346,2093.1,2092.6,0.59764726]
[1772745090624,0.53742346,2093.1,2092.6,0.00617539]
[1772745090927,0.53742346,2093.0,2092.3,1.87159281]
[1772745091127,0.53742346,2093.0,2092.4,0.59147187]
[1772745091818,0.53742346,2093.0,2092.4,0.59713857]
[1772745093620,0.53742346,2093.0,2092.5,0.59147187]
[1772745093818,0.53742346,2093.0,2092.4,0.59713857]
[1772745095425,0.53742346,2093.0,2092.4,0.0056667]
[1772745096430,0.53742346,2092.8,2092.4,0.0056667]
[1772745096625,0.53742346,2092.8,2092.4,0.00472912]
[1772745097228,0.53742346,2092.8,2092.4,0.59620099]
[1772745098132,0.53742346,2093.0,2092.4,0.59620099]
[1772745099436,6.256,2093.1,2092.4,0.59620099]
[1772745099634,6.79342346,2093.1,2092.5,0.59147187]
[1772745100128,0.53742346,2093.0,2092.5,0.59147187]
[1772745101831,0.53742346,2092.7,2092.4,0.00472912]
[1772745103332,0.53742346,2092.7,2092.4,0.59620099]
[1772745104036,0.53742346,2093.2,2092.4,0.59620099]
[1772745104337,0.53742346,2093.2,2092.6,0.59147187]
[1772745108437,0.53742346,2093.0,2092.4,0.59620099]
[1772745120364,0.58027563,2093.3,2092.5,0.55651157]
[1772745120653,4.57972687,2093.6,2092.6,0.55651157]
[1772745120850,0.58027563,2093.6,2092.7,0.55651157]
[1772745121152,0.2388,2093.4,2092.7,0.55651157]
[1772745121353,0.58027563,2093.3,2092.8,41.35651157]
[1772745121852,0.58027563,2093.3,2092.8,0.55651157]
[1772745124949,0.58027563,2093.7,2092.8,0.55651157]
[1772745125956,0.58027563,2093.7,2093.0,0.55651157]
[1772745126553,0.58027563,2093.7,2093.2,0.55651157]
[1772745126857,6.83727563,2093.8,2093.4,0.55651157]
[1772745127057,0.58027563,2093.7,2093.4,0.55651157]
[1772745128054,0.58027563,2093.7,2093.3,2.56440778]
[1772745132760,0.58027563,2093.7,2093.3,0.55651157]
[1772745137060,0.58027563,2093.7,2093.1,2.56440778]
[1772745137364,0.58027563,2093.7,2093.2,0.55651157]
[1772745137559,0.58640413,2094.0,2093.5,2.00789621]
[1772745137762,0.58640413,2094.0,2093.6,0.55651157]
[1772745138659,0.0061285,2094.0,2093.6,0.55651157]
[1772745138865,0.58027563,2094.3,2093.8,0.55651157]
[1772745139867,0.58633069,2094.3,2093.8,0.55651157]
[1772745140567,0.58633069,2094.3,2093.5,2.00789621]
[1772745140568,0.58027563,2094.1,2093.5,0.55651157]
[1772745140969,0.58027563,2093.9,2093.2,0.55651157]
[1772745142669,0.58027563,2093.7,2093.2,0.55651157]
[1772745145476,0.58027563,2093.5,2093.0,0.55651157]
[1772745145970,6.256,2093.6,2093.0,0.55651157]
[1772745146366,6.83627563,2093.6,2093.0,0.55651157]
[1772745146767,6.256,2093.6,2093.2,0.55651157]
[1772745146968,0.58027563,2093.5,2093.2,0.55651157]
[1772745147872,0.58027563,2093.5,2092.9,0.55651157]
[1772745148766,0.58027563,2093.5,2093.1,0.58660056]
[1772745151170,0.55299509,2093.1,2092.7,0.576013]
[1772745151677,6.80999509,2093.2,2092.7,0.576013]
[1772745153370,6.80999509,2093.2,2092.8,0.576013]
[1772745153577,6.257,2093.2,2092.8,0.576013]
[1772745154277,6.80999509,2093.2,2092.8,0.576013]
[1772745154774,6.257,2093.2,2092.8,0.576013]
[1772745156275,6.09565791,2093.2,2092.8,0.576013]
[1772745158582,7.04879509,2093.4,2093.0,0.576013]
[1772745159079,0.55299509,2093.3,2093.0,0.576013]
[1772745161186,0.55299509,2093.3,2092.9,2.58390921]
[1772745162582,0.55299509,2093.3,2092.9,0.576013]
[1772745163985,0.55299509,2093.3,2092.8,0.576013]
[1772745166285,0.55299509,2093.3,2092.4,5.79813737]
[1772745166286,7.04879509,2093.4,2093.0,0.576013]
[1772745166480,0.55299509,2093.3,2093.0,0.576013]
[1772745167781,6.257,2093.4,2093.0,0.576013]
[1772745167986,6.257,2093.4,2093.2,0.576013]
[1772745168188,0.23876,2093.8,2093.2,0.576013]
[1772745168189,0.55299509,2093.6,2093.2,0.576013]
[1772745169187,0.55299509,2093.6,2093.1,0.576013]
[1772745171082,0.55299509,2093.7,2093.3,0.576013]
[1772745171386,0.55299509,2093.6,2093.0,0.576013]
[1772745173188,0.55299509,2093.4,2093.0,0.576013]
[1772745174091,0.55299509,2093.7,2093.2,0.576013]
[1772745174591,0.55299509,2093.5,2093.0,0.576013]
[1772745174889,0.55299509,2093.5,2092.9,0.576013]
[1772745178392,0.55299509,2093.5,2093.1,0.576013]
[1772745183402,0.57599758,2094.2,2093.1,0.576013]
[1772745183901,0.57599758,2094.1,2093.1,0.576013]
[1772745185103,0.81473758,2094.1,2093.1,0.576013]
[1772745185402,0.57599758,2094.0,2093.1,0.576013]
[1772745185601,0.57599758,2093.8,2093.1,0.576013]
[1772745188704,0.57599758,2094.0,2093.3,0.55565434]
[1772745188903,0.81473758,2094.1,2093.3,0.55565434]
[1772745189601,6.83905264,2094.3,2093.6,0.55565434]
[1772745190007,0.58205264,2094.3,2093.6,0.55565434]
[1772745190207,0.00605506,2094.3,2093.6,0.55565434]
[1772745192003,0.58205264,2094.3,2093.6,0.55565434]
[1772745192804,0.00605506,2094.3,2093.6,0.55565434]
[1772745194606,0.58205264,2094.3,2093.6,0.55565434]
[1772745195810,0.57599758,2094.1,2093.6,0.55565434]
[1772745201307,0.57599758,2093.9,2093.2,0.55565434]
[1772745209814,6.257,2094.0,2093.2,0.55565434]
[1772745210015,6.84098673,2094.0,2093.2,0.55565434]
[1772745210513,6.257,2094.0,2093.2,0.55565434]
[1772745211810,6.257,2094.0,2093.5,0.58871071]
[1772745212511,0.59004179,2094.3,2093.5,0.58871071]
[1772745215815,0.58398673,2094.1,2093.5,0.58871071]
[1772745217316,0.58398673,2094.1,2093.3,0.58871071]
[1772745218317,0.58398673,2094.1,2093.5,0.58871071]
[1772745226124,0.58398673,2093.9,2093.3,0.58871071]
[1772745227720,0.23874,2094.0,2093.3,0.58871071]
[1772745228024,0.58398673,2094.1,2093.4,0.58871071]
[1772745234131,0.58398673,2094.0,2093.3,0.58871071]
[1772745234324,0.58398673,2093.8,2093.1,6.58520197]
[1772745234631,0.58398673,2093.8,2093.2,0.58871071]
[1772745242538,0.58398673,2093.8,2093.3,0.57929369]
[1772745252439,0.58028395,2093.8,2093.5,0.57929369]
[1772745252844,0.58028395,2093.9,2093.5,0.57929369]
[1772745253045,0.58028395,2094.0,2093.5,0.57929369]
[1772745253344,0.58028395,2094.0,2093.7,0.57929369]
[1772745254037,0.58028395,2094.0,2093.2,0.57929369]
[1772745254548,0.58028395,2094.0,2093.4,0.57929369]
[1772745255253,0.58028395,2094.0,2093.6,0.57929369]
[1772745258249,6.63674672,2094.1,2093.6,0.57929369]
[1772745259850,0.37874672,2094.0,2093.6,0.57929369]
[1772745260450,6.63508388,2094.1,2093.6,0.57929369]
[1772745260750,0.37708388,2094.0,2093.6,0.57929369]
[1772745261752,0.37708388,2094.0,2093.4,0.57929369]
[1772745264351,6.258,2094.1,2093.6,0.57929369]
[1772745264654,6.6337233,2094.1,2093.6,0.57929369]
[1772745264849,0.3757233,2094.0,2093.6,0.57929369]
[1772745270357,0.3757233,2094.0,2093.5,0.54964538]
[1772745271258,6.63136757,2094.1,2093.7,2.0077679]
[1772745271457,6.258,2094.1,2093.8,0.54964538]
[1772745271858,6.63136757,2094.1,2093.8,0.54964538]
[1772745272359,2.23643169,2094.1,2093.8,0.54964538]
[1772745272555,1.48180341,2094.1,2093.8,0.54964538]
[1772745275166,2.05559423,2094.1,2093.8,0.54964538]
[1772745276459,2.05559423,2094.1,2093.7,2.0077679]
[1772745276664,0.57379082,2094.0,2093.6,0.54964538]
[1772745278374,0.57379082,2094.0,2093.3,2.55741328]
[1772745278573,0.57379082,2094.0,2093.4,0.54964538]
[1772745281371,0.57379082,2094.0,2093.6,0.54964538]
[1772745287879,0.57379082,2094.2,2093.6,0.54964538]
[1772745288078,0.57379082,2094.1,2093.6,0.54964538]
[1772745291180,0.57379082,2094.1,2093.5,2.0077679]
[1772745291181,6.83179082,2094.2,2093.8,0.54964538]
[1772745291381,0.81855588,2094.3,2093.8,0.54964538]
[1772745291681,0.57379082,2094.2,2093.8,0.54964538]
[1772745291975,0.57379082,2094.0,2093.3,6.53263537]
[1772745292182,0.57379082,2094.0,2093.5,0.54964538]
[1772745297887,0.81252082,2094.1,2093.5,0.54964538]
[1772745298086,0.57379082,2094.0,2093.5,0.54964538]
[1772745305292,0.57379082,2094.0,2093.2,0.58810123]
[1772745306194,0.57379082,2094.0,2093.3,0.58810123]
[1772745308000,7.0372323,2094.1,2093.3,0.58810123]
[1772745308995,7.0372323,2094.1,2093.4,0.58810123]
[1772745310501,0.5405023,2093.8,2093.3,0.58810123]
[1772745310701,0.5405023,2093.6,2093.2,6.57109122]
[1772745310897,0.5405023,2093.6,2093.2,0.58810123]
[1772745311294,0.23877,2093.7,2093.2,0.58810123]
[1772745311295,0.5405023,2094.0,2093.2,0.58810123]
[1772745311693,0.5405023,2094.0,2093.3,0.58810123]
[1772745312606,6.7985023,2094.1,2093.3,0.58810123]
[1772745317108,0.5405023,2094.0,2093.3,0.58810123]
[1772745325919,0.5405023,2094.7,2094.0,0.58810123]
[1772745327021,0.54667764,2094.7,2094.0,0.59294147]
[1772745328920,0.57660805,2094.9,2094.2,2.00721015]
[1772745329223,0.57660805,2094.9,2094.3,0.56700435]
[1772745330023,0.58121246,2094.9,2094.3,0.56700435]
[1772745333126,0.58121246,2094.9,2094.3,41.36700435]
[1772745333728,0.58121246,2094.9,2094.4,0.54121864]
[1772745338531,0.58121246,2094.9,2094.3,40.8]
[1772745338825,0.5870601,2094.6,2093.7,0.54121864]
[1772745339729,0.5870601,2094.5,2093.7,0.54121864]
[1772745339927,0.5870601,2094.5,2093.7,0.54463733]
[1772745340229,0.5870601,2094.4,2093.7,0.54463733]
[1772745340735,0.5870601,2094.4,2093.7,0.00341869]
[1772745340922,0.5870601,2094.4,2093.7,0.54463733]
[1772745350538,6.8440601,2094.6,2093.8,0.54121864]
[1772745351335,0.5870601,2094.6,2093.8,0.54121864]
[1772745351539,0.5870601,2094.8,2093.9,0.54121864]
[1772745352341,0.5870601,2094.8,2094.0,0.54121864]
[1772745355541,0.5870601,2094.8,2094.1,0.54121864]
[1772745364452,0.5870601,2094.8,2094.1,2.54725164]
[1772745364652,0.5870601,2094.8,2094.2,0.54197015]
[1772745368950,0.5870601,2094.8,2094.4,0.54197015]
[1772745369152,0.56646052,2095.1,2094.6,0.54197015]
[1772745370055,0.57197032,2095.1,2094.6,0.54197015]
[1772745372956,0.0055098,2095.1,2094.8,0.54197015]
[1772745373151,6.82346052,2095.4,2095.0,0.54197015]
[1772745373456,0.23854,2095.7,2095.0,0.54197015]
[1772745373457,0.56646052,2095.6,2095.0,0.54197015]
[1772745374258,0.5710374,2095.6,2095.0,0.54197015]
[1772745380458,0.5710374,2095.6,2095.1,2.54800315]
[1772745380860,0.5710374,2095.6,2095.1,0.54197015]
[1772745382057,0.5710374,2095.6,2095.2,0.54197015]
[1772745382263,0.56646052,2096.0,2095.5,0.54197015]
[1772745382761,0.56646052,2096.0,2095.7,0.54197015]
[1772745382960,0.23849,2096.2,2095.7,0.54197015]
[1772745383162,0.56646052,2096.1,2095.7,0.54197015]
[1772745383563,0.56646052,2096.1,2095.6,0.54197015]
[1772745383858,0.57039542,2096.1,2095.7,0.00378814]
[1772745385463,0.56646052,2095.5,2095.0,3.97739513]
[1772745385759,0.12774007,2096.4,2095.5,0.54197015]
[1772745385959,6.4934,2097.0,2095.6,40.8]
[1772745386167,0.32615412,2096.8,2096.4,0.54197015]
[1772745386360,6.255,2097.4,2096.5,2.006033]
[1772745386662,0.33897089,2096.9,2096.1,0.54197015]
[1772745386863,0.33897089,2096.7,2096.1,0.54197015]
[1772745387765,0.33897089,2096.7,2096.1,0.54568442]
[1772745387961,6.254,2096.9,2096.3,0.54197015]
[1772745388261,0.35997076,2097.3,2096.9,0.54197015]
[1772745388863,0.36369241,2097.4,2096.9,0.54197015]
[1772745389465,0.36369241,2097.4,2096.7,0.57793451]
[1772745389662,0.36369241,2097.4,2096.5,41.391693]
[1772745389965,0.36369241,2097.4,2096.5,40.8]
[1772745390465,0.36369241,2097.4,2096.5,41.391693]
[1772745390662,0.29069575,2096.9,2096.1,0.00371427]
[1772745390862,0.52914575,2096.5,2095.8,0.591693]
[1772745391067,0.52914575,2096.5,2094.2,9.87583515]
[1772745391068,0.29069575,2096.3,2095.1,0.591693]
[1772745391263,0.29069575,2096.1,2095.1,0.591693]
[1772745391869,0.29069575,2096.1,2095.1,0.59666587]
[1772745399478,0.32716644,2095.9,2095.1,0.59666587]
[1772745399677,0.33151668,2095.9,2095.1,0.59666587]
[1772745401383,0.00435024,2095.9,2095.1,3.59761965]
[1772745401577,0.30477615,2096.3,2095.2,0.591693]
[1772745402582,0.31040893,2096.3,2095.2,0.591693]
[1772745404889,0.00563278,2096.3,2095.2,0.591693]
[1772745405189,6.55073906,2097.0,2095.8,0.591693]
[1772745405680,6.55073906,2097.0,2095.7,28.50195378]
[1772745405681,6.55073906,2097.0,2096.0,0.591693]
[1772745405879,6.253,2097.0,2096.0,0.591693]
[1772745406080,6.25912507,2097.0,2096.0,0.591693]
[1772745406287,0.00612507,2097.0,2096.1,0.591693]
[1772745406586,6.55424231,2097.5,2096.1,0.591693]
[1772745407176,0.30736738,2097.4,2096.1,0.591693]
[1772745407482,0.31254202,2097.4,2096.1,0.591693]
[1772745407883,0.30736738,2097.2,2096.2,0.591693]
[1772745408183,0.56038705,2097.1,2096.2,0.591693]
[1772745408481,0.32200705,2097.0,2096.2,0.591693]
[1772745409082,0.32200705,2097.3,2096.2,0.591693]
[1772745410087,0.00517464,2097.4,2096.4,0.591693]
[1772745411078,0.00517464,2097.4,2096.6,0.591693]
[1772745411283,0.33912208,2097.4,2096.6,0.59561562]
[1772745414991,0.3100432,2097.2,2096.1,0.591693]
[1772745415891,0.3100432,2097.2,2096.1,0.59761774]
[1772745416590,0.23838,2097.1,2096.1,0.59761774]
[1772745416891,0.31004598,2097.0,2096.1,0.59761774]
[1772745421390,0.295504,2096.6,2096.1,0.59761774]
[1772745421590,0.295504,2096.6,2095.9,0.57530588]
[1772745422191,0.27911677,2097.0,2095.9,0.57530588]
[1772745422599,0.27911677,2097.0,2095.9,0.57974501]
[1772745423495,6.25,2097.1,2095.9,0.57974501]
[1772745423496,0.27911677,2096.8,2095.9,0.57974501]
[1772745425203,0.27380052,2096.6,2095.9,0.57974501]
[1772745427501,0.26668009,2096.4,2095.9,0.57974501]
[1772745430101,0.50954729,2096.5,2095.9,0.57974501]
[1772745431301,0.27109729,2096.4,2095.9,0.57974501]
[1772745433004,0.54535053,2096.2,2095.4,0.57530588]
[1772745433905,0.54535053,2096.2,2095.4,0.58123879]
[1772745436003,6.251,2096.5,2095.4,0.58123879]
[1772745436204,0.54535053,2096.7,2095.6,0.57530588]
[1772745436807,0.54535053,2096.7,2095.7,0.57530588]
[1772745441118,0.54535053,2096.6,2095.7,0.57530588]
[1772745445519,0.54535053,2096.6,2095.8,0.57530588]
[1772745446214,3.97178556,2096.9,2095.8,0.57530588]
[1772745446419,0.54535053,2097.0,2096.0,0.57530588]
[1772745446820,0.54535053,2097.0,2096.1,40.8]
[1772745447020,0.54535053,2097.0,2096.2,0.57530588]
[1772745454123,0.53904504,2097.2,2096.2,0.57530588]
[1772745455021,0.53904504,2097.2,2096.2,6.49738478]
[1772745455225,0.54421968,2097.4,2096.3,0.54413985]
[1772745455525,0.54421968,2097.4,2096.4,0.54413985]
[1772745456225,5.95493212,2097.9,2096.6,0.23844]
[1772745456226,3.97178556,2097.8,2096.6,0.23844]
[1772745456422,20.76577212,2098.7,2097.2,5.94308329]
[1772745456423,6.251,2098.5,2097.2,5.94308329]
[1772745456628,20.88186579,2099.5,2097.7,6.48722314]
[1772745456629,5.98441418,2098.8,2097.7,6.48722314]
[1772745456824,0.53904504,2098.9,2098.0,0.54413985]
[1772745457024,0.53904504,2098.9,2098.0,5.93534724]
[1772745457328,0.53904504,2099.3,2098.1,0.54413985]
[1772745457625,0.54314131,2098.9,2098.1,0.54413985]
[1772745458127,0.00409627,2098.9,2098.1,0.54413985]
[1772745458525,0.53904504,2099.9,2098.2,0.54413985]
[1772745458728,0.58204504,2100.3,2098.8,0.54413985]
[1772745458928,0.58204504,2100.3,2099.0,0.54413985]
[1772745459529,0.5859199,2100.3,2099.0,0.54413985]
[1772745459830,0.53904504,2099.9,2099.0,0.54413985]
[1772745460729,12.10529,2100.0,2098.1,0.54413985]
[1772745460730,0.53904504,2099.7,2098.1,0.54413985]
[1772745461033,0.53904504,2099.5,2098.1,0.54413985]
[1772745461828,5.85737,2099.6,2098.1,0.54413985]
[1772745461829,0.53904504,2099.3,2098.1,0.54413985]
[1772745462035,0.53904504,2099.1,2098.1,0.54413985]
[1772745468742,0.53904504,2099.1,2098.0,0.00564648]
[1772745469239,0.53904504,2099.1,2098.0,0.54978633]
[1772745470537,0.53904504,2099.1,2098.0,0.00564648]
[1772745471645,0.53904504,2098.9,2097.7,0.54413985]
[1772745472244,0.53904504,2098.7,2097.7,41.34413985]
[1772745472439,0.53904504,2098.5,2097.7,41.34413985]
[1772745472643,0.54512745,2098.5,2097.7,0.54758191]
[1772745473138,0.54512745,2098.5,2097.9,0.54413985]
[1772745474636,0.53904504,2098.8,2097.9,0.54413985]
[1772745474833,0.23814,2099.3,2098.0,0.54413985]
[1772745474834,6.78504504,2099.3,2098.0,0.54413985]
[1772745475034,0.53904504,2099.3,2098.0,0.54413985]
[1772745475239,0.53904504,2099.3,2098.2,0.54413985]
[1772745475444,0.5452137,2099.3,2098.2,0.54413985]
[1772745475633,0.00616866,2099.3,2098.2,0.54413985]
[1772745476139,0.5452137,2099.3,2098.2,0.54413985]
[1772745476541,0.00616866,2099.3,2098.2,0.54413985]
[1772745476735,0.5452137,2099.3,2098.2,0.54413985]
[1772745478738,0.53904504,2099.1,2098.2,0.54413985]
[1772745479932,0.53904504,2099.1,2097.7,40.80344206]
[1772745479933,0.23817,2099.0,2098.0,0.58233305]
[1772745480137,0.54936185,2098.7,2097.8,0.58233305]
[1772745483038,0.54936185,2099.0,2097.8,0.58233305]
[1772745484447,0.54936185,2098.8,2097.8,0.58233305]
[1772745485948,0.54936185,2098.6,2097.8,0.58233305]
[1772745486748,0.54936185,2098.4,2097.7,0.00344206]
[1772745486949,0.54936185,2098.4,2097.7,0.58577511]
[1772745488750,0.54936185,2098.2,2097.7,0.58577511]
[1772745491050,0.54936185,2098.2,2097.7,0.00344206]
[1772745491252,0.54936185,2098.2,2097.5,0.58233305]
[1772745491653,0.54936185,2098.2,2097.3,4.51550281]
[1772745492157,0.54936185,2098.0,2097.3,0.58233305]
[1772745492356,0.54936185,2098.0,2097.3,0.00399735]
[1772745492851,0.54936185,2097.8,2097.3,0.00399735]
[1772745493051,0.55420911,2097.8,2097.3,0.00399735]
[1772745493251,0.55420911,2097.8,2097.1,0.58233305]
[1772745493752,0.55420911,2097.8,2096.9,0.58233305]
[1772745494255,0.55420911,2097.8,2096.9,0.58723413]
[1772745495854,0.54936185,2097.6,2096.9,0.58723413]
[1772745496154,0.54936185,2097.6,2096.7,0.58233305]
[1772745497257,0.54936185,2097.6,2096.7,0.58790652]
[1772745502054,0.54936185,2097.6,2096.8,41.38233305]
[1772745502257,0.54936185,2097.6,2096.9,0.58233305]
[1772745502857,0.54936185,2097.6,2096.7,0.00557347]
[1772745502858,0.54936185,2097.2,2096.7,0.58790652]
[1772745503158,0.54936185,2097.2,2096.6,0.54633578]
[1772745504057,0.54936185,2097.2,2096.6,0.55121281]
[1772745504260,0.54936185,2097.7,2096.6,0.55121281]
[1772745504962,0.54936185,2097.5,2096.6,0.55121281]
[1772745507263,0.54936185,2097.7,2096.6,3.54973466]
[1772745507460,0.54936185,2097.7,2096.7,0.54598228]
[1772745508365,0.00484726,2097.8,2096.7,0.54598228]
[1772745508568,0.55949009,2097.8,2096.7,0.54598228]
[1772745509070,0.55949009,2097.8,2096.8,0.54224222]
[1772745513371,0.55949009,2097.8,2096.9,0.53381763]
[1772745516274,0.55949009,2097.8,2097.0,0.51835847]
[1772745520078,0.55949009,2097.8,2097.1,0.51527735]
[1772745520274,0.00484726,2097.8,2097.1,0.51527735]
[1772745520474,0.00484726,2097.8,2097.2,0.51527735]
[1772745523274,0.00484726,2097.8,2097.4,0.51384864]
[1772745523480,0.58342158,2098.0,2097.4,0.51384864]
[1772745524380,0.58860433,2098.0,2097.4,0.51384864]
[1772745524776,0.58860433,2098.0,2097.3,45.25774056]
[1772745525081,0.58860433,2098.0,2097.4,0.51217801]
[1772745525583,0.58860433,2098.0,2097.2,4.45774056]
[1772745526581,0.58860433,2098.0,2097.2,0.51217801]
[1772745526981,0.58342158,2097.8,2097.2,0.51217801]
[1772745531882,0.58342158,2097.8,2097.0,44.74556255]
[1772745532083,0.58342158,2097.8,2097.0,45.24685656]
[1772745532286,0.58342158,2097.8,2097.1,0.49996129]
[1772745532779,0.58342158,2097.6,2096.9,0.49996129]
[1772745534884,0.58342158,2097.6,2096.7,0.50692289]
[1772745537181,0.58342158,2097.4,2096.6,0.00487703]
[1772745537385,0.58342158,2097.4,2096.6,0.51149768]
[1772745537990,0.58342158,2097.2,2096.6,0.00487703]
[1772745539090,0.58342158,2097.2,2096.3,41.3006176]
[1772745539301,0.58342158,2097.0,2096.3,41.3006176]
[1772745539486,0.58342158,2097.0,2096.3,0.5006176]
[1772745540190,0.58342158,2097.0,2096.3,0.5054317]
[1772745542783,6.48638,2097.1,2096.0,0.50006453]
[1772745542784,0.58213674,2096.8,2096.0,0.50006453]
[1772745543787,0.58213674,2096.8,2096.0,0.50547943]
[1772745544392,0.58213674,2096.9,2096.0,0.50547943]
[1772745544793,6.248,2097.1,2096.0,0.50547943]
[1772745544994,0.58213674,2097.0,2096.0,0.50547943]
[1772745553103,0.58213674,2097.0,2096.1,0.50224536]
[1772745553498,0.58213674,2097.2,2096.1,0.50224536]
[1772745553705,0.82049674,2097.3,2096.3,0.50224536]
[1772745555510,0.58213674,2097.4,2096.4,0.49954065]
[1772745556103,0.58213674,2097.7,2096.4,0.49954065]
[1772745556308,0.58213674,2097.7,2096.5,0.50041757]
[1772745556510,0.58213674,2097.3,2096.3,0.50041757]
[1772745556708,0.58213674,2096.9,2096.3,0.50041757]
[1772745557010,0.58213674,2096.7,2096.1,0.50041757]
[1772745567015,0.58213674,2097.1,2096.1,0.50041757]
[1772745568408,0.58213674,2096.5,2095.8,40.8]
[1772745568612,0.58213674,2096.5,2095.7,0.48059362]
[1772745569215,0.58213674,2096.5,2095.9,0.48635714]
[1772745569416,0.58573368,2096.5,2095.9,0.4920767]
[1772745570119,0.58573368,2096.5,2095.9,0.00571956]
[1772745570615,0.58573368,2096.5,2095.9,0.49375288]
[1772745572617,0.58573368,2096.5,2095.9,0.00571956]
[1772745572917,0.58573368,2096.5,2095.9,0.49299909]
[1772745575912,0.56136919,2096.3,2095.4,5.89735312]
[1772745576120,0.56136919,2096.1,2095.0,0.48387527]
[1772745576419,0.56136919,2096.1,2095.2,0.48387527]
[1772745576817,0.56136919,2096.3,2095.3,0.48387527]
[1772745577012,0.56136919,2096.3,2095.4,0.48387527]
[1772745577212,6.81236919,2096.4,2095.6,0.48387527]
[1772745577418,0.56136919,2096.4,2095.6,0.48387527]
[1772745584127,0.00359694,2096.5,2095.7,0.48061998]
[1772745584314,0.00359694,2096.5,2095.8,0.48061998]
[1772745584926,0.56496613,2096.5,2095.8,0.48061998]
[1772745586617,0.00359694,2096.5,2095.8,0.48061998]
[1772745587226,0.00359694,2096.5,2096.0,0.47938863]
[1772745588725,0.56496613,2096.5,2096.0,0.47938863]
[1772745588925,0.00359694,2096.5,2096.0,0.47938863]
[1772745590027,0.56496613,2096.5,2096.0,0.47938863]
[1772745591622,0.56136919,2096.7,2096.0,0.47938863]
[1772745592025,0.56136919,2097.0,2096.0,0.47938863]
[1772745592329,0.56136919,2097.0,2096.1,0.47948914]
[1772745592531,0.56136919,2097.0,2096.2,0.47948914]
[1772745592733,0.56606748,2097.0,2096.3,0.47948914]
[1772745600232,0.00469829,2097.0,2096.3,4.45421896]
[1772745600437,0.00469829,2097.0,2096.4,4.45660947]
[1772745600635,0.00469829,2097.0,2096.3,5.89735312]
[1772745600636,0.56813108,2097.2,2096.6,0.48187965]
[1772745601529,0.56813108,2097.5,2096.7,0.48187965]
[1772745602530,0.57249433,2097.5,2096.7,0.48187965]
[1772745602730,0.56813108,2097.3,2096.5,0.48265863]
[1772745603230,0.00436325,2097.5,2096.5,0.48265863]
[1772745603231,0.56813108,2097.1,2096.5,0.48265863]
[1772745606040,0.00436325,2097.5,2096.5,0.48265863]
[1772745606241,0.57249433,2097.5,2096.6,0.48123225]
[1772745609840,0.57249433,2097.5,2096.7,0.48896651]
[1772745614042,4.5563054,2097.9,2096.7,0.48896651]
[1772745614243,0.56813108,2097.8,2097.1,0.48645558]
[1772745614746,0.56813108,2097.8,2097.2,41.28645558]
[1772745615142,0.57368161,2097.8,2097.2,41.29008672]
[1772745619544,0.57368161,2097.8,2097.3,0.48639472]
[1772745621543,0.56813108,2097.9,2097.3,0.48639472]
[1772745622648,0.57312762,2097.9,2097.3,0.48639472]
[1772745624745,0.57312762,2097.9,2097.2,40.80363114]
[1772745624941,0.57312762,2097.9,2097.2,0.58431788]
[1772745631060,0.57312762,2097.9,2097.3,40.8]
[1772745631353,0.57312762,2097.9,2097.4,0.58181148]
[1772745631948,0.00499654,2097.9,2097.4,0.58181148]
[1772745632152,0.54886771,2098.2,2097.4,0.58181148]
[1772745633154,0.00520986,2098.2,2097.4,0.58181148]
[1772745633650,0.54886771,2098.6,2097.7,0.58181148]
[1772745634556,0.55221837,2098.6,2097.7,0.58181148]
[1772745634955,0.55221837,2098.6,2097.8,0.58181148]
[1772745636559,0.55221837,2098.6,2098.0,0.58181148]
[1772745639758,0.54886771,2099.0,2098.0,0.58181148]
[1772745640963,0.54886771,2098.8,2098.0,0.58181148]
[1772745641462,0.54886771,2098.8,2097.9,40.8]
[1772745641959,0.54886771,2098.8,2097.9,41.38181148]
[1772745642665,0.54886771,2098.6,2097.9,41.38181148]
[1772745643966,0.54886771,2098.6,2097.9,0.58181148]
[1772745644166,6.246,2098.7,2097.7,0.58181148]
[1772745644167,0.54886771,2098.4,2097.7,0.58181148]
[1772745646757,0.54886771,2098.4,2097.5,0.58181148]
[1772745646964,0.54886771,2098.2,2097.5,0.58181148]
[1772745650867,0.54886771,2098.2,2097.4,0.58181148]
[1772745654167,0.54886771,2098.0,2097.2,0.58544262]
[1772745654370,0.54886771,2097.6,2096.9,0.58181148]
[1772745654871,0.54886771,2097.6,2096.7,0.58181148]
[1772745655472,0.54886771,2097.6,2096.7,0.58645223]
[1772745655673,0.54886771,2097.4,2096.7,0.58645223]
[1772745655973,0.55273918,2097.4,2096.7,0.58645223]